[Event "RUS-ch Men Blitz 2019"]
[Site "Sochi"]
[Date "2019.10.17"]
[Round "3.20"]
[White "Papin, Vasily"]
[Black "Goltsev, Dmitry"]
[Result "1-0"]
[ECO "A16"]
[WhiteElo "2481"]
[BlackElo "2309"]
[Annotator "ChessBase"]
[PlyCount "73"]
[EventDate "2019.10.17"]
[EventType "swiss"]
[EventCountry "RUS"]
[SourceTitle "playchess.com"]
[Source "ChessBase"]
[SourceQuality "1"]
[TimeControl "180+2"]

1. c4 {[%emt 0:00:00]} Nf6 {[%emt 0:00:00]} 2. Nc3 {[%emt 0:00:00]} e5 {[%emt 0:00:00]} 3. Nf3 {[%emt 0:00:08]} d6 {[%emt 0:00:02]} 4. d4 {[%emt 0:00:02]} Nbd7 {[%emt 0:00:02]} 5. g3 {[%emt 0:00:01]} g6 {[%emt 0:00:02]} 6. Bg2 {[%emt 0:00:01]} Bg7 {[%emt 0:00:01]} 7. O-O {[%emt 0:00:02]} O-O {[%emt 0:00:01]} 8. h3 {[%emt 0:00:01]} Qe7 {[%emt 0:00:05]} 9. e4 {[%emt 0:00:06]} h6 {[%emt 0:00:15]} 10. Re1 {[%emt 0:00:01]} c6 {[%emt 0:00:15]} 11. Be3 {[%emt 0:00:09]} Ne8 {[%emt 0:00:04]} 12. Qd2 {[%emt 0:00:34]} Kh7 {[%emt 0:00:05]} 13. Rad1 {[%emt 0:00:01]} Nc7 {[%emt 0:00:16]} 14. b3 {[%emt 0:00:49]} f5 {[%emt 0:00:37]} 15. exf5 {[%emt 0:00:01]} gxf5 {[%emt 0:00:01]} 16. dxe5 {[%emt 0:00:01]} dxe5 {[%emt 0:00:13]} 17. Nh4 {[%emt 0:00:01]} Nf6 {[%emt 0:00:07]} 18. Na4 {[%emt 0:00:05]} Qf7 {[%emt 0:00:26]} 19. Bc5 {[%emt 0:00:03]} Re8 {[%emt 0:00:02]} 20. Bd6 {[%emt 0:00:28]} e4 {[%emt 0:00:06]} 21. Nc3 {[%emt 0:00:40]} b5 {[%emt 0:00:23]} 22. cxb5 {[%emt 0:00:04]} Nxb5 {[%emt 0:00:02]} 23. Nxb5 {[%emt 0:00:05]} cxb5 {[%emt 0:00:01]} 24. Qa5 {[%emt 0:00:04]} a6 {[%emt 0:00:09]} 25. Rc1 {[%emt 0:00:06]} Ra7 {[%emt 0:00:04]} 26. a4 {[%emt 0:00:05]} bxa4 {[%emt 0:00:05]} 27. bxa4 {[%emt 0:00:01]} Be6 {[%emt 0:00:04]} 28. Nxf5 {[%emt 0:00:01]} Qd7 {[%emt 0:00:07]} 29. Nxg7 {[%emt 0:00:02]} Qxd6 {[%emt 0:00:07]} 30. Nxe8 {[%emt 0:00:01]} Nxe8 {[%emt 0:00:01]} 31. Rxe4 {[%emt 0:00:03]} Ng7 {[%emt 0:00:02]} 32. Rce1 {[%emt 0:00:03]} Bf5 {[%emt 0:00:02]} 33. Re5 {[%emt 0:00:01]} Bg6 {[%emt 0:00:03]} 34. Qc5 {[%emt 0:00:01]} Qb8 {[%emt 0:00:06]} 35. Re7 {[%emt 0:00:03]} Rxe7 {[%emt 0:00:02]} 36. Rxe7 {[%emt 0:00:01]} Qb2 {[%emt 0:00:04]} 37. Qe5 {[%emt 0:00:03]} 1-0

[Event "RUS-ch Men Blitz 2019"]
[Site "Sochi"]
[Date "2019.10.17"]
[Round "3.22"]
[White "Klimentov, Evgeny"]
[Black "Vastrukhin, Oleg"]
[Result "0-1"]
[ECO "C03"]
[WhiteElo "2199"]
[BlackElo "2428"]
[Annotator "NA"]
[PlyCount "86"]
[EventDate "2019.10.17"]
[EventType "swiss"]
[EventCountry "RUS"]
[SourceTitle "playchess.com"]
[Source "ChessBase"]
[SourceQuality "1"]
[TimeControl "180+2"]

1. e4 {[%emt 0:00:00]} e6 {[%emt 0:00:00]} 2. d4 {[%emt 0:00:00]} d5 {[%emt 0:00:00]} 3. Nd2 {[%emt 0:00:00]} a6 {[%emt 0:00:00]} 4. Ngf3 {[%emt 0:00:02]} Bd7 {[%emt 0:00:00]} 5. exd5 {[%emt 0:00:04]} exd5 {[%emt 0:00:02]} 6. Bd3 {[%emt 0:00:01]} Bd6 {[%emt 0:00:06]} 7. O-O {[%emt 0:00:03]} Ne7 {[%emt 0:00:02]} 8. Re1 {[%emt 0:00:09]} O-O {[%emt 0:00:07]} 9. Nf1 {[%emt 0:00:01]} Bf5 {[%emt 0:00:06]} 10. Bg5 {[%emt 0:00:05]} f6 {[%emt 0:00:04]} 11. Bh4 {[%emt 0:00:03]} Nbc6 {[%emt 0:00:13]} 12. Bg3 {[%emt 0:00:06]} Re8 {[%emt 0:00:05]} 13. c3 {[%emt 0:00:05]} Qd7 {[%emt 0:00:05]} 14. Bxd6 {[%emt 0:00:02]} Qxd6 {[%emt 0:00:01]} 15. Bxf5 {[%emt 0:00:04]} Nxf5 {[%emt 0:00:01]} 16. Ng3 {[%emt 0:00:02]} Nce7 {[%emt 0:00:11]} 17. Nxf5 {[%emt 0:00:07]} Nxf5 {[%emt 0:00:01]} 18. Qd3 {[%emt 0:00:01]} Qd7 {[%emt 0:00:03]} 19. Rxe8+ {[%emt 0:00:02]} Rxe8 {[%emt 0:00:00]} 20. Re1 {[%emt 0:00:04]} Nd6 {[%emt 0:00:01]} 21. Rxe8+ {[%emt 0:00:04]} Qxe8 {[%emt 0:00:01]} 22. Kf1 {[%emt 0:00:05]} Nc4 {[%emt 0:00:18]} 23. b3 {[%emt 0:00:12]} Nd6 {[%emt 0:00:01]} 24. h3 {[%emt 0:00:25]} Qe4 {[%emt 0:00:02]} 25. Ne1 {[%emt 0:00:29]} Kf7 {[%emt 0:00:14]} 26. Qd2 {[%emt 0:00:40]} a5 {[%emt 0:00:11]} 27. Nd3 {[%emt 0:00:06]} b6 {[%emt 0:00:02]} 28. a4 {[%emt 0:00:05]} c6 {[%emt 0:00:15]} 29. f3 {[%emt 0:00:01]} Qf5 {[%emt 0:00:05]} 30. Qe3 {[%emt 0:00:05]} Qe6 {[%emt 0:00:05]} 31. Qxe6+ {[%emt 0:00:03]} Kxe6 {[%emt 0:00:01]} 32. Ke2 {[%emt 0:00:07]} g5 {[%emt 0:00:01]} 33. g4 {[%emt 0:00:07]} Ne8 {[%emt 0:00:18]} 34. f4 {[%emt 0:00:08]} h6 {[%emt 0:00:06]} 35. Ke3 {[%emt 0:00:10]} Nd6 {[%emt 0:00:02]} 36. f5+ {[%emt 0:00:07]} Kd7 {[%emt 0:00:01]} 37. Nf2 {[%emt 0:00:02]} c5 {[%emt 0:00:05]} 38. dxc5 {[%emt 0:00:06]} bxc5 {[%emt 0:00:01]} 39. Kd3 {[%emt 0:00:08]} Kc6 {[%emt 0:00:05]} 40. c4 {[%emt 0:00:01]} d4 {[%emt 0:00:53]} 41. Ne4 {[%emt 0:00:04]} Nxe4 {[%emt 0:00:03]} 42. Kxe4 {[%emt 0:00:01]} Kd6 {[%emt 0:00:00]} 43. Kd3 {[%emt 0:00:09]} Ke5 {[%emt 0:00:02]} 0-1

[Event "RUS-ch Men Blitz 2019"]
[Site "Sochi"]
[Date "2019.10.17"]
[Round "3.28"]
[White "Airapetian, Gor"]
[Black "Dianov, Alexey"]
[Result "1-0"]
[ECO "D09"]
[WhiteElo "2447"]
[BlackElo "2158"]
[Annotator "NA"]
[PlyCount "89"]
[EventDate "2019.10.17"]
[EventType "swiss"]
[EventCountry "RUS"]
[SourceTitle "playchess.com"]
[Source "ChessBase"]
[SourceQuality "1"]
[TimeControl "180+2"]

1. d4 {[%emt 0:00:00]} d5 {[%emt 0:00:00]} 2. c4 {[%emt 0:00:00]} e5 {[%emt 0:00:00]} 3. dxe5 {[%emt 0:00:02]} d4 {[%emt 0:00:00]} 4. Nf3 {[%emt 0:00:01]} Nc6 {[%emt 0:00:01]} 5. g3 {[%emt 0:00:02]} Be6 {[%emt 0:00:01]} 6. Nbd2 Qd7 7. Bg2 {[%emt 0:00:20]} Nge7 {[%emt 0:00:01]} 8. O-O Ng6 9. Qa4 {[%emt 0:00:34]} O-O-O {[%emt 0:00:13]} 10. b4 {[%emt 0:00:07]} Kb8 {[%emt 0:00:03]} 11. a3 {[%emt 0:00:50]} Ncxe5 {[%emt 0:00:08]} 12. Qxd7 {[%emt 0:00:02]} Rxd7 {[%emt 0:00:10]} 13. Bb2 {[%emt 0:00:17]} Nxc4 {[%emt 0:00:12]} 14. Nxc4 {[%emt 0:00:02]} Bxc4 {[%emt 0:00:01]} 15. Nxd4 {[%emt 0:00:01]} Be7 {[%emt 0:00:11]} 16. Rac1 {[%emt 0:00:05]} Ba2 {[%emt 0:00:06]} 17. Nf5 {[%emt 0:00:06]} Bf6 {[%emt 0:00:05]} 18. Bxf6 {[%emt 0:00:31]} gxf6 {[%emt 0:00:01]} 19. Rfd1 {[%emt 0:00:15]} Rhd8 {[%emt 0:00:04]} 20. Rxd7 {[%emt 0:00:01]} Rxd7 {[%emt 0:00:01]} 21. f4 {[%emt 0:00:01]} Be6 {[%emt 0:00:19]} 22. Ne3 {[%emt 0:00:01]} Ne7 {[%emt 0:00:01]} 23. Kf2 {[%emt 0:00:02]} c6 {[%emt 0:00:09]} 24. Be4 {[%emt 0:00:04]} h6 {[%emt 0:00:09]} 25. f5 {[%emt 0:00:09]} Bb3 {[%emt 0:00:01]} 26. Ng4 {[%emt 0:00:04]} Rd2 {[%emt 0:00:13]} 27. Nxh6 {[%emt 0:00:07]} Bd5 {[%emt 0:00:21]} 28. Bd3 {[%emt 0:00:04]} Ra2 {[%emt 0:00:02]} 29. Ng4 {[%emt 0:00:01]} Rxa3 {[%emt 0:00:30]} 30. Nxf6 {[%emt 0:00:01]} Rb3 {[%emt 0:00:06]} 31. h4 {[%emt 0:00:04]} a5 {[%emt 0:00:28]} 32. bxa5 {[%emt 0:00:02]} c5 {[%emt 0:00:11]} 33. h5 {[%emt 0:00:02]} c4 {[%emt 0:00:00]} 34. Bc2 {[%emt 0:00:04]} Rb5 {[%emt 0:00:06]} 35. h6 {[%emt 0:00:02]} Be6 {[%emt 0:00:05]} 36. e4 {[%emt 0:00:02]} Bxf5 {[%emt 0:00:03]} 37. exf5 {[%emt 0:00:01]} Nxf5 38. h7 {[%emt 0:00:03]} Nd4 {[%emt 0:00:04]} 39. h8=Q+ {[%emt 0:00:01]} Ka7 {[%emt 0:00:01]} 40. Be4 {[%emt 0:00:02]} Rb2+ {[%emt 0:00:01]} 41. Kf1 {[%emt 0:00:00]} Nb3 {[%emt 0:00:02]} 42. Rd1 {[%emt 0:00:02]} Nd2+ {[%emt 0:00:02]} 43. Rxd2 {[%emt 0:00:01]} Rxd2 {[%emt 0:00:00]} 44. Nd5 {[%emt 0:00:01]} c3 {[%emt 0:00:02]} 45. Qxc3 {[%emt 0:00:01]} 1-0

[Event "RUS-ch Men Blitz 2019"]
[Site "Sochi"]
[Date "2019.10.17"]
[Round "3.30"]
[White "Esipenko, Aleksandr"]
[Black "Timofeev, Artyom"]
[Result "0-1"]
[ECO "B52"]
[WhiteElo "2043"]
[BlackElo "2595"]
[Annotator "RC"]
[PlyCount "234"]
[EventDate "2019.10.17"]
[EventType "swiss"]
[EventCountry "RUS"]
[SourceTitle "playchess.com"]
[Source "ChessBase"]
[SourceQuality "1"]
[TimeControl "180+2"]

1. e4 {[%emt 0:00:00]} c5 {[%emt 0:00:00]} 2. Nf3 {[%emt 0:00:02]} d6 {[%emt 0:00:02]} 3. Bb5+ {[%emt 0:00:02]} Bd7 {[%emt 0:00:02]} 4. Bxd7+ {[%emt 0:00:02]} Nxd7 {[%emt 0:00:02]} 5. O-O {[%emt 0:00:02]} Ngf6 {[%emt 0:00:02]} 6. Re1 {[%emt 0:00:02]} Rc8 {[%emt 0:00:02]} 7. c3 {[%emt 0:00:02]} e6 {[%emt 0:00:02]} 8. d4 {[%emt 0:00:02]} cxd4 {[%emt 0:00:02]} 9. cxd4 {[%emt 0:00:02]} d5 {[%emt 0:00:02]} 10. e5 {[%emt 0:00:02]} Ne4 {[%emt 0:00:02]} 11. Nbd2 {[%emt 0:00:02]} Nxd2 {[%emt 0:00:02]} 12. Bxd2 {[%emt 0:00:02]} Be7 {[%emt 0:00:02]} 13. Bc3 {[%emt 0:00:02]} O-O {[%emt 0:00:02]} 14. Qd3 {[%emt 0:00:02]} Nb8 {[%emt 0:00:16]} 15. Nd2 {[%emt 0:00:19]} Nc6 {[%emt 0:00:04]} 16. Re3 {[%emt 0:00:13]} Nb4 {[%emt 0:00:12]} 17. Bxb4 {[%emt 0:00:14]} Bxb4 {[%emt 0:00:02]} 18. Rh3 {[%emt 0:00:02]} h6 {[%emt 0:00:14]} 19. Nb3 {[%emt 0:00:04]} Qc7 {[%emt 0:00:07]} 20. Qb5 {[%emt 0:00:27]} Qb6 {[%emt 0:00:18]} 21. Qe2 {[%emt 0:00:33]} a5 {[%emt 0:00:16]} 22. Qg4 {[%emt 0:00:08]} Kh8 {[%emt 0:00:16]} 23. Rg3 {[%emt 0:00:05]} Rg8 {[%emt 0:00:02]} 24. a4 {[%emt 0:00:03]} Qc6 {[%emt 0:00:04]} 25. Qh5 {[%emt 0:00:06]} Rc7 {[%emt 0:00:10]} 26. h3 {[%emt 0:00:07]} Rgc8 {[%emt 0:00:28]} 27. Rf3 {[%emt 0:00:07]} Qe8 {[%emt 0:00:02]} 28. Kh2 {[%emt 0:00:16]} b6 {[%emt 0:00:01]} 29. Rd1 {[%emt 0:00:02]} Bf8 {[%emt 0:00:02]} 30. Ra1 {[%emt 0:00:01]} g6 {[%emt 0:00:05]} 31. Qg4 {[%emt 0:00:01]} Rc2 {[%emt 0:00:04]} 32. Qf4 {[%emt 0:00:02]} R8c7 {[%emt 0:00:02]} 33. Ra2 {[%emt 0:00:14]} Kg8 {[%emt 0:00:02]} 34. Qe3 {[%emt 0:00:05]} R2c4 {[%emt 0:00:11]} 35. Qd3 {[%emt 0:00:07]} Rxa4 {[%emt 0:00:04]} 36. Rxa4 {[%emt 0:00:01]} Qxa4 {[%emt 0:00:01]} 37. Qa6 {[%emt 0:00:00]} Qc6 {[%emt 0:00:01]} 38. Rc3 {[%emt 0:00:04]} Qd7 {[%emt 0:00:02]} 39. Qxb6 {[%emt 0:00:05]} Rb7 {[%emt 0:00:39]} 40. Qa6 {[%emt 0:00:04]} Kg7 {[%emt 0:00:04]} 41. Nxa5 {[%emt 0:00:04]} Rxb2 {[%emt 0:00:01]} 42. Rf3 {[%emt 0:00:01]} Rd2 {[%emt 0:00:05]} 43. Nb3 {[%emt 0:00:01]} Rd1 {[%emt 0:00:01]} 44. Qe2 {[%emt 0:00:03]} Rb1 {[%emt 0:00:02]} 45. Qd3 {[%emt 0:00:02]} Rb2 {[%emt 0:00:01]} 46. Nc1 {[%emt 0:00:06]} Qb5 {[%emt 0:00:02]} 47. Qxb5 {[%emt 0:00:03]} Rxb5 {[%emt 0:00:01]} 48. Rd3 {[%emt 0:00:00]} Rb2 {[%emt 0:00:01]} 49. Kg3 {[%emt 0:00:02]} g5 {[%emt 0:00:02]} 50. Kf3 {[%emt 0:00:01]} Kg6 {[%emt 0:00:01]} 51. g4 {[%emt 0:00:01]} Rc2 {[%emt 0:00:02]} 52. Ne2 {[%emt 0:00:01]} Bb4 {[%emt 0:00:01]} 53. Ng3 {[%emt 0:00:02]} Be1 {[%emt 0:00:02]} 54. Nh1 {[%emt 0:00:02]} Rc4 {[%emt 0:00:04]} 55. Ng3 {[%emt 0:00:01]} Bc3 {[%emt 0:00:01]} 56. Ne2 {[%emt 0:00:00]} Bb2 {[%emt 0:00:01]} 57. Rd2 {[%emt 0:00:01]} Ba1 {[%emt 0:00:01]} 58. Rd1 {[%emt 0:00:01]} Bb2 59. Rd2 Ba3 {[%emt 0:00:02]} 60. Rd3 {[%emt 0:00:02]} Be7 {[%emt 0:00:01]} 61. Rb3 {[%emt 0:00:02]} f6 {[%emt 0:00:04]} 62. exf6 {[%emt 0:00:02]} Bxf6 {[%emt 0:00:01]} 63. Rb6 {[%emt 0:00:01]} Kf7 {[%emt 0:00:01]} 64. Rb7+ {[%emt 0:00:00]} Be7 {[%emt 0:00:01]} 65. Ke3 {[%emt 0:00:03]} Ra4 {[%emt 0:00:01]} 66. Rb3 {[%emt 0:00:01]} Bd6 {[%emt 0:00:02]} 67. Kf3 {[%emt 0:00:03]} Ra1 {[%emt 0:00:01]} 68. Rb7+ {[%emt 0:00:02]} Kf6 {[%emt 0:00:02]} 69. Rh7 {[%emt 0:00:02]} Bf8 {[%emt 0:00:01]} 70. Rb7 {[%emt 0:00:04]} Ra3+ {[%emt 0:00:02]} 71. Kg2 {[%emt 0:00:02]} Rd3 {[%emt 0:00:01]} 72. Rc7 {[%emt 0:00:04]} Ba3 {[%emt 0:00:02]} 73. Rc3 {[%emt 0:00:01]} Rxc3 {[%emt 0:00:02]} 74. Nxc3 {[%emt 0:00:00]} Bb2 {[%emt 0:00:01]} 75. Nb5 {[%emt 0:00:01]} Ke7 {[%emt 0:00:02]} 76. Kf3 {[%emt 0:00:01]} Kd7 {[%emt 0:00:02]} 77. Ke3 {[%emt 0:00:03]} Kc6 {[%emt 0:00:01]} 78. Na7+ {[%emt 0:00:01]} Kb6 {[%emt 0:00:10]} 79. Nc8+ {[%emt 0:00:01]} Kb5 {[%emt 0:00:01]} 80. Kd3 {[%emt 0:00:01]} Kc6 {[%emt 0:00:04]} 81. Ne7+ {[%emt 0:00:01]} Kd7 {[%emt 0:00:01]} 82. Ng8 {[%emt 0:00:05]} Ke8 {[%emt 0:00:01]} 83. Nf6+ {[%emt 0:00:03]} Ke7 {[%emt 0:00:01]} 84. Nh5 {[%emt 0:00:07]} Bc1 {[%emt 0:00:02]} 85. Ng3 {[%emt 0:00:02]} Bf4 {[%emt 0:00:02]} 86. Ne2 {[%emt 0:00:01]} Bd6 {[%emt 0:00:00]} 87. Nc3 {[%emt 0:00:01]} Kd7 {[%emt 0:00:02]} 88. Ne2 {[%emt 0:00:11]} Kc6 {[%emt 0:00:01]} 89. Ng1 {[%emt 0:00:02]} Kb5 {[%emt 0:00:01]} 90. Nf3 {[%emt 0:00:01]} Kb4 {[%emt 0:00:03]} 91. Nd2 {[%emt 0:00:05]} Bf4 {[%emt 0:00:03]} 92. Nf3 {[%emt 0:00:08]} Kb3 {[%emt 0:00:01]} 93. Ne1 {[%emt 0:00:02]} Kb2 {[%emt 0:00:02]} 94. Nc2 {[%emt 0:00:01]} Kc1 {[%emt 0:00:02]} 95. Nb4 {[%emt 0:00:04]} Kd1 {[%emt 0:00:02]} 96. Nc6 {[%emt 0:00:01]} Ke1 {[%emt 0:00:02]} 97. Ne7 {[%emt 0:00:01]} Kxf2 {[%emt 0:00:02]} 98. Ng8 {[%emt 0:00:01]} Kg3 {[%emt 0:00:02]} 99. Nxh6 {[%emt 0:00:02]} Kxh3 {[%emt 0:00:01]} 100. Ke2 {[%emt 0:00:01]} Kg3 {[%emt 0:00:03]} 101. Kd3 {[%emt 0:00:01]} Kf3 {[%emt 0:00:01]} 102. Kc3 {[%emt 0:00:03]} Bc7 {[%emt 0:00:04]} 103. Kd3 {[%emt 0:00:01]} Ba5 {[%emt 0:00:02]} 104. Kc2 {[%emt 0:00:03]} Ke4 {[%emt 0:00:02]} 105. Nf7 {[%emt 0:00:01]} Kf4 {[%emt 0:00:01]} 106. Nh6 {[%emt 0:00:02]} Bb4 {[%emt 0:00:09]} 107. Kd3 {[%emt 0:00:04]} Bf8 {[%emt 0:00:01]} 108. Nf7 {[%emt 0:00:01]} Kxg4 {[%emt 0:00:01]} 109. Nd8 {[%emt 0:00:01]} Kf5 {[%emt 0:00:02]} 110. Ke3 {[%emt 0:00:02]} Bd6 {[%emt 0:00:01]} 111. Nb7 {[%emt 0:00:03]} Bf4+ {[%emt 0:00:02]} 112. Kf2 {[%emt 0:00:03]} g4 {[%emt 0:00:04]} 113. Kg2 {[%emt 0:00:01]} Be3 {[%emt 0:00:02]} 114. Nd6+ {[%emt 0:00:02]} Kf4 {[%emt 0:00:01]} 115. Nb5 {[%emt 0:00:03]} Bc1 {[%emt 0:00:07]} 116. Nc7 {[%emt 0:00:01]} Kf5 {[%emt 0:00:01]} 117. Kg3 {[%emt 0:00:02]} Bf4+ {[%emt 0:00:01]} 0-1

[Event "RUS-ch Men Blitz 2019"]
[Site "Sochi"]
[Date "2019.10.17"]
[Round "3.31"]
[White "Ovod, Evgenija"]
[Black "Kokarev, Dmitry"]
[Result "0-1"]
[ECO "B22"]
[WhiteElo "2347"]
[BlackElo "2593"]
[Annotator "ChessBase"]
[PlyCount "70"]
[EventDate "2019.10.17"]
[EventType "swiss"]
[EventCountry "RUS"]
[SourceTitle "playchess.com"]
[Source "ChessBase"]
[SourceQuality "1"]
[TimeControl "180+2"]

1. e4 c5 2. c3 Nf6 3. e5 Nd5 4. Nf3 d6 5. d4 cxd4 6. cxd4 Nc6 7. Bc4 dxe5 8. dxe5 Ndb4 9. Qb3 e6 10. O-O Na5 11. Qa4+ Bd7 12. Bb5 Bxb5 13. Qxb5+ Nac6 14. Nc3 a6 15. Qe2 Qd3 16. Re1 Be7 17. a3 Qxe2 18. Rxe2 Nd3 19. b4 Rc8 20. Bd2 O-O 21. b5 axb5 22. Nxb5 Rfd8 23. Bc3 g5 24. h3 h5 25. a4 Kg7 26. Ne1 Nf4 27. Re4 Kg6 28. h4 Kf5 29. f3 gxh4 30. Kf2 Na7 31. Bd4 Nxb5 32. axb5 Rxd4 33. Rxd4 Bc5 34. Raa4 Kxe5 35. Nc2 Bb6 0-1

[Event "RUS-ch Men Blitz 2019"]
[Site "Sochi"]
[Date "2019.10.20"]
[Round "4.1"]
[White "Grachev, Boris"]
[Black "Morozevich, Alexander"]
[Result "0-1"]
[ECO "A04"]
[WhiteElo "2621"]
[BlackElo "2659"]
[Annotator "ChessBase"]
[PlyCount "91"]
[EventDate "2019.10.17"]
[EventType "swiss"]
[EventCountry "RUS"]
[SourceTitle "playchess.com"]
[Source "ChessBase"]
[SourceQuality "1"]
[TimeControl "180+2"]

1. Nf3 {[%emt 0:00:00]} b6 {[%emt 0:00:00]} 2. g3 {[%emt 0:00:07]} Bb7 {[%emt 0:00:01]} 3. Bg2 {[%emt 0:00:01]} e5 {[%emt 0:00:08]} 4. d3 {[%emt 0:00:09]} g6 {[%emt 0:00:11]} 5. c4 {[%emt 0:00:03]} Bg7 {[%emt 0:00:02]} 6. Nc3 {[%emt 0:00:01]} Ne7 {[%emt 0:00:05]} 7. O-O {[%emt 0:00:03]} O-O {[%emt 0:00:01]} 8. Bd2 {[%emt 0:00:18]} c5 {[%emt 0:00:20]} 9. Rb1 {[%emt 0:00:19]} d5 {[%emt 0:00:18]} 10. cxd5 {[%emt 0:00:08]} Nxd5 {[%emt 0:00:02]} 11. a3 {[%emt 0:00:03]} Qd7 {[%emt 0:00:23]} 12. Nxd5 {[%emt 0:00:20]} Bxd5 {[%emt 0:00:02]} 13. Bc3 {[%emt 0:00:01]} Nc6 {[%emt 0:00:09]} 14. b4 {[%emt 0:00:06]} cxb4 {[%emt 0:00:10]} 15. axb4 {[%emt 0:00:01]} Nd4 {[%emt 0:00:14]} 16. Bxd4 {[%emt 0:00:09]} exd4 {[%emt 0:00:02]} 17. b5 {[%emt 0:00:08]} Rac8 {[%emt 0:00:11]} 18. Nd2 {[%emt 0:00:18]} Bxg2 {[%emt 0:00:02]} 19. Kxg2 {[%emt 0:00:01]} Rc5 {[%emt 0:00:06]} 20. Nf3 {[%emt 0:00:15]} Rfc8 {[%emt 0:00:08]} 21. Rb2 {[%emt 0:00:09]} Rxb5 {[%emt 0:00:14]} 22. Qa4 {[%emt 0:00:04]} Rd5 {[%emt 0:00:01]} 23. Qxd7 {[%emt 0:00:07]} Rxd7 {[%emt 0:00:01]} 24. Ra1 {[%emt 0:00:01]} Bf6 {[%emt 0:00:18]} 25. Nd2 {[%emt 0:00:05]} Rc5 {[%emt 0:00:06]} 26. Ne4 {[%emt 0:00:08]} Rc6 {[%emt 0:00:01]} 27. Ra6 {[%emt 0:00:06]} Be7 {[%emt 0:00:05]} 28. Nd2 {[%emt 0:00:08]} Rcc7 {[%emt 0:00:13]} 29. Nc4 {[%emt 0:00:05]} f6 {[%emt 0:00:01]} 30. f4 {[%emt 0:00:02]} Kf7 {[%emt 0:00:01]} 31. Kf3 {[%emt 0:00:01]} Bc5 {[%emt 0:00:04]} 32. g4 {[%emt 0:00:07]} Re7 {[%emt 0:00:01]} 33. Rb5 {[%emt 0:00:11]} Ke8 {[%emt 0:00:01]} 34. Rb2 {[%emt 0:00:04]} Kd8 {[%emt 0:00:02]} 35. Rba2 {[%emt 0:00:04]} Kc8 {[%emt 0:00:03]} 36. h4 {[%emt 0:00:02]} Kb8 {[%emt 0:00:02]} 37. g5 {[%emt 0:00:02]} f5 {[%emt 0:00:05]} 38. Ra1 {[%emt 0:00:03]} Re6 {[%emt 0:00:03]} 39. R6a2 {[%emt 0:00:02]} Rce7 {[%emt 0:00:01]} 40. Ne5 {[%emt 0:00:04]} a5 {[%emt 0:00:04]} 41. Rb1 {[%emt 0:00:03]} Ka7 {[%emt 0:00:04]} 42. h5 {[%emt 0:00:05]} Ka6 {[%emt 0:00:04]} 43. hxg6 {[%emt 0:00:05]} hxg6 {[%emt 0:00:01]} 44. Rh1 {[%emt 0:00:02]} Bd6 {[%emt 0:00:01]} 45. Nc4 {[%emt 0:00:05]} Bc7 {[%emt 0:00:02]} 46. Rha1 {[%emt 0:00:06]} 0-1

[Event "RUS-ch Men Blitz 2019"]
[Site "Sochi"]
[Date "2019.10.17"]
[Round "4.2"]
[White "Gutenev, Alexander"]
[Black "Rublevsky, Sergei"]
[Result "1/2-1/2"]
[ECO "B43"]
[WhiteElo "2469"]
[BlackElo "2651"]
[Annotator "RC"]
[PlyCount "85"]
[EventDate "2019.10.17"]
[EventType "swiss"]
[EventCountry "RUS"]
[SourceTitle "playchess.com"]
[Source "ChessBase"]
[SourceQuality "1"]
[TimeControl "180+2"]

1. e4 {[%emt 0:00:00]} c5 {[%emt 0:00:00]} 2. Nf3 {[%emt 0:00:03]} e6 {[%emt 0:00:00]} 3. d4 {[%emt 0:00:01]} cxd4 {[%emt 0:00:01]} 4. Nxd4 {[%emt 0:00:01]} a6 {[%emt 0:00:01]} 5. Nc3 {[%emt 0:00:01]} Qc7 {[%emt 0:00:02]} 6. Be2 {[%emt 0:00:01]} Nf6 {[%emt 0:00:02]} 7. O-O {[%emt 0:00:02]} Be7 {[%emt 0:00:02]} 8. f4 {[%emt 0:00:04]} d6 {[%emt 0:00:02]} 9. Qe1 {[%emt 0:00:04]} O-O {[%emt 0:00:06]} 10. Qg3 {[%emt 0:00:19]} b5 {[%emt 0:00:03]} 11. Bf3 {[%emt 0:00:13]} Bb7 {[%emt 0:00:03]} 12. e5 {[%emt 0:00:03]} Ne8 {[%emt 0:00:02]} 13. Ne4 {[%emt 0:00:11]} Nd7 {[%emt 0:00:08]} 14. Ng5 {[%emt 0:00:31]} Bxg5 {[%emt 0:00:27]} 15. Qxg5 {[%emt 0:00:06]} Bxf3 {[%emt 0:00:03]} 16. Nxf3 {[%emt 0:00:04]} Qxc2 {[%emt 0:00:28]} 17. Be3 {[%emt 0:00:25]} dxe5 {[%emt 0:00:05]} 18. fxe5 {[%emt 0:00:02]} Qxb2 {[%emt 0:00:34]} 19. Rad1 {[%emt 0:00:11]} f6 {[%emt 0:00:29]} 20. Qg4 {[%emt 0:00:01]} Nxe5 {[%emt 0:00:19]} 21. Qxe6+ {[%emt 0:00:02]} Rf7 {[%emt 0:00:02]} 22. Nd4 {[%emt 0:01:12]} Nc7 {[%emt 0:00:04]} 23. Qh3 {[%emt 0:00:05]} Nd5 {[%emt 0:00:05]} 24. Nf5 {[%emt 0:00:02]} Nxe3 {[%emt 0:00:04]} 25. Qxe3 {[%emt 0:00:00]} Qxa2 {[%emt 0:00:05]} 26. Nd6 {[%emt 0:00:02]} Rd7 {[%emt 0:00:02]} 27. Ne4 {[%emt 0:00:02]} Rxd1 {[%emt 0:00:03]} 28. Rxd1 {[%emt 0:00:01]} Qe6 {[%emt 0:00:07]} 29. Nc5 {[%emt 0:00:02]} Qe7 {[%emt 0:00:01]} 30. h3 {[%emt 0:00:01]} Re8 {[%emt 0:00:02]} 31. Nxa6 {[%emt 0:00:04]} Qf7 {[%emt 0:00:09]} 32. Rb1 {[%emt 0:00:02]} Nc4 {[%emt 0:00:02]} 33. Qc5 {[%emt 0:00:01]} Nd2 {[%emt 0:00:12]} 34. Rd1 {[%emt 0:00:05]} Qc4 {[%emt 0:00:03]} 35. Rxd2 {[%emt 0:00:02]} Re1+ {[%emt 0:00:04]} 36. Kf2 {[%emt 0:00:02]} Rf1+ {[%emt 0:00:01]} 37. Ke3 {[%emt 0:00:02]} Re1+ {[%emt 0:00:04]} 38. Kf2 {[%emt 0:00:01]} Rf1+ {[%emt 0:00:04]} 39. Ke3 {[%emt 0:00:00]} Re1+ {[%emt 0:00:04]} 40. Kf2 {[%emt 0:00:02]} Rf1+ 41. Ke3 Re1+ 42. Kf3 Rf1+ 43. Rf2 1/2-1/2